[Event "Titled Tuesday Blitz March 28 Late 2023"]
[White "Wieczorek, Oskar"]
[Black "Onslow, Alfie"]
[WhiteFideId "1133950"]
[BlackFideId "436976"]
[WhiteElo "2418"]
[BlackElo "2114"]
[Result "1-0"]
[Round "01"]
[TimeControl "180+2"]
[Date "2023.03.28"]
[WhiteClock "0:00:51"]
[BlackClock "0:00:01"]

1. e4 {[%clk 0:03:00]}  c5 {[%clk 0:02:56]} 2. Nf3 {[%clk 0:03:01]}  Nc6 {[%clk 0:02:56]} 3. b4 {[%clk 0:03:01]}  cxb4 {[%clk 0:02:55]} 4. d4 {[%clk 0:03:01]}  d5 {[%clk 0:02:55]} 5. exd5 {[%clk 0:03:02]}  Qxd5 {[%clk 0:02:55]} 6. c4 {[%clk 0:03:02]}  bxc3 {[%clk 0:02:56]} 7. Nxc3 {[%clk 0:03:03]}  Qa5 {[%clk 0:02:56]} 8. Rb1 {[%clk 0:03:04]}  Qxc3+ {[%clk 0:02:52]} 9. Bd2 {[%clk 0:02:26]}  Qa3 {[%clk 0:02:52]} 10. d5 {[%clk 0:02:21]}  Nf6 {[%clk 0:02:53]} 11. dxc6 {[%clk 0:02:16]}  bxc6 {[%clk 0:02:54]} 12. Qc2 {[%clk 0:02:09]}  Qd6 {[%clk 0:02:53]} 13. Bf4 {[%clk 0:02:02]}  Qe6+ {[%clk 0:02:21]} 14. Be2 {[%clk 0:01:48]}  Qe4 {[%clk 0:02:15]} 15. Qxe4 {[%clk 0:01:22]}  Nxe4 {[%clk 0:02:16]} 16. Ne5 {[%clk 0:01:23]}  f6 {[%clk 0:01:45]} 17. Bf3 {[%clk 0:01:11]}  Bf5 {[%clk 0:01:11]} 18. g4 {[%clk 0:01:11]}  fxe5 {[%clk 0:01:05]} 19. gxf5 {[%clk 0:01:11]}  exf4 {[%clk 0:01:00]} 20. Bxe4 {[%clk 0:01:11]}  Rc8 {[%clk 0:00:29]} 21. Rb7 {[%clk 0:01:11]}  a5 {[%clk 0:00:13]} 22. Ke2 {[%clk 0:01:10]}  Kf7 {[%clk 0:00:12]} 23. Ra7 {[%clk 0:01:01]}  g6 {[%clk 0:00:06]} 24. Rg1 {[%clk 0:00:55]}  Bg7 {[%clk 0:00:05]} 25. fxg6+ {[%clk 0:00:55]}  hxg6 {[%clk 0:00:05]} 26. Bxg6+ {[%clk 0:00:53]}  Kf6 {[%clk 0:00:05]} 27. Bd3 {[%clk 0:00:52]}  Rxh2 {[%clk 0:00:04]} 28. Rg6+ {[%clk 0:00:50]}  Kf7 {[%clk 0:00:05]} 29. Rg4 {[%clk 0:00:51]}  Bf6 {[%clk 0:00:04]} 30. Bc4+ {[%clk 0:00:51]}  Kf8 {[%clk 0:00:01]} 31. Rg8# {[%clk 0:00:51]} 1-0


[Site "https://www.chess.com"]

[Event "Titled Tuesday Blitz March 28 Late 2023"]
[White "Jimenez, Joaquin"]
[Black "Rostomyan, Mikayel"]
[WhiteFideId "109860"]
[BlackFideId "13313754"]
[WhiteElo "2163"]
[BlackElo "2009"]
[Result "0-1"]
[Round "01"]
[TimeControl "180+2"]
[Date "2023.03.28"]
[WhiteClock "0:00:51"]
[BlackClock "0:00:50"]

1. d4 {[%clk 0:02:56]}  Nf6 {[%clk 0:02:59]} 2. c4 {[%clk 0:02:53]}  c5 {[%clk 0:02:58]} 3. e3 {[%clk 0:02:52]}  cxd4 {[%clk 0:02:55]} 4. exd4 {[%clk 0:02:52]}  e6 {[%clk 0:02:56]} 5. Nc3 {[%clk 0:02:48]}  d5 {[%clk 0:02:56]} 6. Bg5 {[%clk 0:02:48]}  Be7 {[%clk 0:02:52]} 7. Nf3 {[%clk 0:02:47]}  a6 {[%clk 0:02:46]} 8. Bd3 {[%clk 0:02:39]}  dxc4 {[%clk 0:02:44]} 9. Bxc4 {[%clk 0:02:39]}  b5 {[%clk 0:02:45]} 10. Bb3 {[%clk 0:02:39]}  Bb7 {[%clk 0:02:44]} 11. O-O {[%clk 0:02:35]}  O-O {[%clk 0:02:39]} 12. a3 {[%clk 0:02:35]}  Nbd7 {[%clk 0:02:39]} 13. Re1 {[%clk 0:02:32]}  Nb6 {[%clk 0:02:39]} 14. Ne5 {[%clk 0:02:24]}  Nfd5 {[%clk 0:02:32]} 15. Bxe7 {[%clk 0:02:21]}  Qxe7 {[%clk 0:02:32]} 16. Ne4 {[%clk 0:02:13]}  Nf4 {[%clk 0:02:13]} 17. Qf3 {[%clk 0:01:57]}  Ng6 {[%clk 0:02:06]} 18. Rad1 {[%clk 0:01:46]}  f5 {[%clk 0:01:53]} 19. Nxg6 {[%clk 0:01:38]}  hxg6 {[%clk 0:01:52]} 20. d5 {[%clk 0:01:30]}  fxe4 {[%clk 0:01:47]} 21. Qxe4 {[%clk 0:01:28]}  Qf6 {[%clk 0:01:38]} 22. Qxe6+ {[%clk 0:01:22]}  Qxe6 {[%clk 0:01:38]} 23. dxe6 {[%clk 0:01:22]}  Nc4 {[%clk 0:01:34]} 24. Rd7 {[%clk 0:01:16]}  Bc6 {[%clk 0:01:26]} 25. Rc7 {[%clk 0:01:16]}  Rfc8 {[%clk 0:01:18]} 26. Rxc8+ {[%clk 0:01:13]}  Rxc8 {[%clk 0:01:19]} 27. h4 {[%clk 0:01:05]}  Kf8 {[%clk 0:01:12]} 28. a4 {[%clk 0:01:05]}  Ke7 {[%clk 0:01:07]} 29. axb5 {[%clk 0:01:04]}  Bxb5 {[%clk 0:01:08]} 30. Bc2 {[%clk 0:01:02]}  Kf6 {[%clk 0:01:00]} 31. g4 {[%clk 0:00:59]}  Nxb2 {[%clk 0:00:59]} 32. g5+ {[%clk 0:00:58]}  Ke7 {[%clk 0:00:59]} 33. Bxg6 {[%clk 0:00:58]}  Nd3 {[%clk 0:00:59]} 34. Re3 {[%clk 0:00:55]}  Rc1+ {[%clk 0:00:55]} 35. Kh2 {[%clk 0:00:54]}  Nxf2 {[%clk 0:00:54]} 36. Bf5 {[%clk 0:00:51]}  g6 {[%clk 0:00:51]} 37. Bxg6 {[%clk 0:00:51]}  Ng4+ {[%clk 0:00:50]} 0-1


[Site "https://www.chess.com"]

[Event "Titled Tuesday Blitz March 28 Late 2023"]
[White "Smith, Garrett L"]
[Black "Ozer, Omer Faruk"]
[WhiteFideId "2024829"]
[BlackFideId "6354564"]
[WhiteElo "2302"]
[BlackElo "2260"]
[Result "0-1"]
[Round "01"]
[TimeControl "180+2"]
[Date "2023.03.28"]
[WhiteClock "0:01:22"]
[BlackClock "0:01:48"]

1. e4 {[%clk 0:03:00]}  c5 {[%clk 0:02:57]} 2. a3 {[%clk 0:03:00]}  d5 {[%clk 0:02:56]} 3. exd5 {[%clk 0:03:00]}  Nf6 {[%clk 0:02:56]} 4. Bb5+ {[%clk 0:02:58]}  Bd7 {[%clk 0:02:56]} 5. Bxd7+ {[%clk 0:02:58]}  Qxd7 {[%clk 0:02:56]} 6. c4 {[%clk 0:02:59]}  e6 {[%clk 0:02:55]} 7. Qe2 {[%clk 0:02:59]}  Bd6 {[%clk 0:02:51]} 8. Nc3 {[%clk 0:02:54]}  O-O {[%clk 0:02:50]} 9. dxe6 {[%clk 0:02:54]}  Qc6 {[%clk 0:02:49]} 10. Qf3 {[%clk 0:02:43]}  Re8 {[%clk 0:02:44]} 11. Qxc6 {[%clk 0:02:31]}  Nxc6 {[%clk 0:02:43]} 12. Nge2 {[%clk 0:02:28]}  Rxe6 {[%clk 0:02:41]} 13. O-O {[%clk 0:02:28]}  Ne5 {[%clk 0:02:31]} 14. b3 {[%clk 0:02:20]}  Nd3 {[%clk 0:02:31]} 15. Ng3 {[%clk 0:02:15]}  Rd8 {[%clk 0:02:21]} 16. Nf5 {[%clk 0:02:12]}  Be5 {[%clk 0:02:12]} 17. a4 {[%clk 0:02:05]}  Ne4 {[%clk 0:02:05]} 18. Nxe4 {[%clk 0:01:41]}  Bxa1 {[%clk 0:02:04]} 19. Ng5 {[%clk 0:01:30]}  Re1 {[%clk 0:01:57]} 20. Rxe1 {[%clk 0:01:26]}  Nxe1 {[%clk 0:01:58]} 21. Ba3 {[%clk 0:01:25]}  b6 {[%clk 0:01:54]} 22. Ne4 {[%clk 0:01:23]}  Nc2 {[%clk 0:01:49]} 23. Ne7+ {[%clk 0:01:22]}  Kf8 {[%clk 0:01:48]} 0-1


[Site "https://www.chess.com"]

[Event "Titled Tuesday Blitz March 28 Late 2023"]
[White "Sochacki, Christophe"]
[Black "Skibbe, Willi"]
[WhiteFideId "662569"]
[BlackFideId "4682190"]
[WhiteElo "2474"]
[BlackElo "2298"]
[Result "0-1"]
[Round "01"]
[TimeControl "180+2"]
[Date "2023.03.28"]
[WhiteClock "0:00:05"]
[BlackClock "0:00:06"]

1. b3 {[%clk 0:02:59]}  c5 {[%clk 0:02:54]} 2. Bb2 {[%clk 0:02:59]}  Nc6 {[%clk 0:02:52]} 3. Nf3 {[%clk 0:02:59]}  d5 {[%clk 0:02:51]} 4. e3 {[%clk 0:02:58]}  e6 {[%clk 0:02:51]} 5. Bb5 {[%clk 0:02:57]}  Ne7 {[%clk 0:02:50]} 6. O-O {[%clk 0:02:56]}  a6 {[%clk 0:02:51]} 7. Be2 {[%clk 0:02:55]}  f6 {[%clk 0:02:49]} 8. d4 {[%clk 0:02:55]}  Nf5 {[%clk 0:02:46]} 9. c4 {[%clk 0:02:54]}  cxd4 {[%clk 0:02:36]} 10. Nxd4 {[%clk 0:02:49]}  Nfxd4 {[%clk 0:02:35]} 11. exd4 {[%clk 0:02:44]}  Bd6 {[%clk 0:02:30]} 12. cxd5 {[%clk 0:02:39]}  exd5 {[%clk 0:02:30]} 13. Bd3 {[%clk 0:02:22]}  O-O {[%clk 0:02:11]} 14. Qh5 {[%clk 0:02:13]}  f5 {[%clk 0:02:11]} 15. Nc3 {[%clk 0:02:07]}  Nb4 {[%clk 0:02:11]} 16. Bb1 {[%clk 0:02:02]}  g6 {[%clk 0:02:10]} 17. Qf3 {[%clk 0:02:00]}  Be6 {[%clk 0:02:01]} 18. Re1 {[%clk 0:01:55]}  Bf7 {[%clk 0:02:00]} 19. h3 {[%clk 0:01:43]}  Be7 {[%clk 0:01:40]} 20. Ne2 {[%clk 0:01:30]}  Re8 {[%clk 0:01:35]} 21. Nf4 {[%clk 0:01:29]}  Qd7 {[%clk 0:01:24]} 22. a3 {[%clk 0:01:26]}  Nc6 {[%clk 0:01:23]} 23. Bd3 {[%clk 0:01:22]}  Bf6 {[%clk 0:01:22]} 24. Ne2 {[%clk 0:01:05]}  Re7 {[%clk 0:01:19]} 25. b4 {[%clk 0:00:55]}  Rae8 {[%clk 0:01:17]} 26. Red1 {[%clk 0:00:52]}  Qc7 {[%clk 0:01:01]} 27. b5 {[%clk 0:00:52]}  axb5 {[%clk 0:01:01]} 28. Bxb5 {[%clk 0:00:52]}  Qb6 {[%clk 0:01:02]} 29. a4 {[%clk 0:00:52]}  Rxe2 {[%clk 0:00:53]} 30. Bxe2 {[%clk 0:00:49]}  Qxb2 {[%clk 0:00:53]} 31. Bf1 {[%clk 0:00:35]}  Nxd4 {[%clk 0:00:49]} 32. Qg3 {[%clk 0:00:29]}  Ne2+ {[%clk 0:00:42]} 33. Bxe2 {[%clk 0:00:29]}  Qxe2 {[%clk 0:00:43]} 34. Rab1 {[%clk 0:00:28]}  Be5 {[%clk 0:00:32]} 35. Qb3 {[%clk 0:00:27]}  d4 {[%clk 0:00:21]} 36. Qxb7 {[%clk 0:00:27]}  Rb8 {[%clk 0:00:17]} 37. Qd7 {[%clk 0:00:19]}  Rxb1 {[%clk 0:00:17]} 38. Rxb1 {[%clk 0:00:19]}  d3 {[%clk 0:00:18]} 39. a5 {[%clk 0:00:16]}  d2 {[%clk 0:00:17]} 40. Rf1 {[%clk 0:00:13]}  Bc4 {[%clk 0:00:15]} 41. Qe8+ {[%clk 0:00:10]}  Kg7 {[%clk 0:00:15]} 42. Qe7+ {[%clk 0:00:11]}  Bf7 {[%clk 0:00:12]} 43. Qd8 {[%clk 0:00:07]}  Bc7 {[%clk 0:00:08]} 44. Qd4+ {[%clk 0:00:06]}  Qe5 {[%clk 0:00:07]} 45. Qd7 {[%clk 0:00:05]}  Qh2# {[%clk 0:00:06]} 0-1


[Site "https://www.chess.com"]

[Event "Titled Tuesday Blitz March 28 Late 2023"]
[White "Ardila, Oscar Humberto"]
[Black "Hardaway, Brewington"]
[WhiteFideId "4404742"]
[BlackFideId "30941849"]
[WhiteElo "1911"]
[BlackElo "2159"]
[Result "0-1"]
[Round "01"]
[TimeControl "180+2"]
[Date "2023.03.28"]
[WhiteClock "0:00:08"]
[BlackClock "0:00:14"]

1. d4 {[%clk 0:02:55]}  Nf6 {[%clk 0:02:58]} 2. Nf3 {[%clk 0:02:55]}  e6 {[%clk 0:02:58]} 3. Bg5 {[%clk 0:02:55]}  d5 {[%clk 0:02:57]} 4. Nbd2 {[%clk 0:02:54]}  h6 {[%clk 0:02:56]} 5. Bh4 {[%clk 0:02:54]}  Be7 {[%clk 0:02:56]} 6. e3 {[%clk 0:02:53]}  Nbd7 {[%clk 0:02:55]} 7. Bd3 {[%clk 0:02:53]}  c5 {[%clk 0:02:55]} 8. c3 {[%clk 0:02:52]}  b6 {[%clk 0:02:56]} 9. O-O {[%clk 0:02:52]}  Bb7 {[%clk 0:02:55]} 10. Re1 {[%clk 0:02:51]}  O-O {[%clk 0:02:54]} 11. Qe2 {[%clk 0:02:51]}  Rc8 {[%clk 0:02:48]} 12. Rad1 {[%clk 0:02:50]}  Ne4 {[%clk 0:02:42]} 13. Bxe7 {[%clk 0:02:48]}  Qxe7 {[%clk 0:02:40]} 14. Nf1 {[%clk 0:02:43]}  f5 {[%clk 0:02:35]} 15. N3d2 {[%clk 0:02:38]}  e5 {[%clk 0:02:32]} 16. Nxe4 {[%clk 0:02:34]}  fxe4 {[%clk 0:02:30]} 17. Bb1 {[%clk 0:02:25]}  Rf6 {[%clk 0:02:18]} 18. Ng3 {[%clk 0:02:23]}  Rcf8 {[%clk 0:02:18]} 19. Rf1 {[%clk 0:02:24]}  exd4 {[%clk 0:02:11]} 20. cxd4 {[%clk 0:02:24]}  Nb8 {[%clk 0:02:01]} 21. Nh5 {[%clk 0:02:14]}  Rf5 {[%clk 0:01:55]} 22. Ng3 {[%clk 0:02:12]}  R5f7 {[%clk 0:01:50]} 23. dxc5 {[%clk 0:01:34]}  Ba6 {[%clk 0:01:49]} 24. Qh5 {[%clk 0:01:31]}  Bxf1 {[%clk 0:01:47]} 25. Rxf1 {[%clk 0:01:31]}  Qxc5 {[%clk 0:01:46]} 26. Ne2 {[%clk 0:01:27]}  Nd7 {[%clk 0:01:33]} 27. Nf4 {[%clk 0:01:27]}  Nf6 {[%clk 0:01:30]} 28. Qg6 {[%clk 0:01:22]}  Re8 {[%clk 0:01:24]} 29. Rd1 {[%clk 0:01:21]}  d4 {[%clk 0:00:51]} 30. exd4 {[%clk 0:01:19]}  Qg5 {[%clk 0:00:52]} 31. Qxg5 {[%clk 0:01:13]}  hxg5 {[%clk 0:00:52]} 32. Nh3 {[%clk 0:01:10]}  g4 {[%clk 0:00:52]} 33. Nf4 {[%clk 0:01:02]}  Rc8 {[%clk 0:00:45]} 34. Ne2 {[%clk 0:00:58]}  Rcf8 {[%clk 0:00:38]} 35. Nc3 {[%clk 0:00:57]}  Re7 {[%clk 0:00:30]} 36. Re1 {[%clk 0:00:52]}  Rd8 {[%clk 0:00:30]} 37. Rd1 {[%clk 0:00:48]}  Red7 {[%clk 0:00:29]} 38. Ne2 {[%clk 0:00:41]}  Kf7 {[%clk 0:00:26]} 39. a3 {[%clk 0:00:32]}  Ke7 {[%clk 0:00:22]} 40. b4 {[%clk 0:00:23]}  Rc8 {[%clk 0:00:20]} 41. Ng3 {[%clk 0:00:15]}  Rc3 {[%clk 0:00:17]} 42. Bxe4 {[%clk 0:00:12]}  Nxe4 {[%clk 0:00:13]} 43. Nxe4 {[%clk 0:00:12]}  Rxa3 {[%clk 0:00:13]} 44. g3 {[%clk 0:00:11]}  Ra4 {[%clk 0:00:11]} 45. Re1 {[%clk 0:00:11]}  Kd8 {[%clk 0:00:11]} 46. d5 {[%clk 0:00:10]}  Rxb4 {[%clk 0:00:11]} 47. Ng5 {[%clk 0:00:10]}  Rxd5 {[%clk 0:00:10]} 48. Ne6+ {[%clk 0:00:10]}  Kd7 {[%clk 0:00:11]} 49. Kg2 {[%clk 0:00:10]}  Rbb5 {[%clk 0:00:09]} 50. Nf4 {[%clk 0:00:10]}  Re5 {[%clk 0:00:09]} 51. Rd1+ {[%clk 0:00:11]}  Kc7 {[%clk 0:00:10]} 52. Rc1+ {[%clk 0:00:11]}  Rbc5 {[%clk 0:00:10]} 53. Ra1 {[%clk 0:00:10]}  a5 {[%clk 0:00:10]} 54. Rd1 {[%clk 0:00:11]}  Rc6 {[%clk 0:00:10]} 55. Rd4 {[%clk 0:00:07]}  b5 {[%clk 0:00:09]} 56. Nd3 {[%clk 0:00:07]}  Rg5 {[%clk 0:00:09]} 57. Ne5 {[%clk 0:00:06]}  Rxe5 {[%clk 0:00:09]} 58. Rxg4 {[%clk 0:00:06]}  Re2 {[%clk 0:00:09]} 59. Rxg7+ {[%clk 0:00:06]}  Kb6 {[%clk 0:00:10]} 60. Rf7 {[%clk 0:00:07]}  Rcc2 {[%clk 0:00:10]} 61. h4 {[%clk 0:00:07]}  a4 {[%clk 0:00:10]} 62. h5 {[%clk 0:00:08]}  a3 {[%clk 0:00:11]} 63. Rf6+ {[%clk 0:00:07]}  Ka5 {[%clk 0:00:11]} 64. g4 {[%clk 0:00:08]}  a2 {[%clk 0:00:12]} 65. Rf8 {[%clk 0:00:08]}  Rc6 {[%clk 0:00:11]} 66. Ra8+ {[%clk 0:00:08]}  Ra6 {[%clk 0:00:11]} 67. Rxa6+ {[%clk 0:00:07]}  Kxa6 {[%clk 0:00:12]} 68. Kf3 {[%clk 0:00:08]}  a1=Q {[%clk 0:00:12]} 69. Kxe2 {[%clk 0:00:08]}  Qf6 {[%clk 0:00:13]} 70. Kf1 {[%clk 0:00:07]}  Qf3 {[%clk 0:00:13]} 71. g5 {[%clk 0:00:08]}  Qxh5 {[%clk 0:00:13]} 72. Kg2 {[%clk 0:00:08]}  Qxg5+ {[%clk 0:00:14]} 73. Kf1 {[%clk 0:00:08]}  Qf5 {[%clk 0:00:14]} 0-1


[Site "https://www.chess.com"]

[Event "Titled Tuesday Blitz March 28 Late 2023"]
[White "Bjelobrk, Igor"]
[Black "K2JW"]
[WhiteFideId "4300726"]
[WhiteElo "2335"]
[BlackElo "2295"]
[Result "0-1"]
[Round "01"]
[TimeControl "180+2"]
[Date "2023.03.28"]
[WhiteClock "0:00:14"]
[BlackClock "0:00:07"]

1. d4 {[%clk 0:02:59]}  d5 {[%clk 0:02:57]} 2. c4 {[%clk 0:02:57]}  e6 {[%clk 0:02:57]} 3. Nf3 {[%clk 0:02:49]}  Nf6 {[%clk 0:02:56]} 4. g3 {[%clk 0:02:49]}  Be7 {[%clk 0:02:56]} 5. Bg2 {[%clk 0:02:48]}  O-O {[%clk 0:02:57]} 6. O-O {[%clk 0:02:48]}  c6 {[%clk 0:02:57]} 7. Qc2 {[%clk 0:02:46]}  b6 {[%clk 0:02:58]} 8. Rd1 {[%clk 0:02:30]}  Nbd7 {[%clk 0:02:53]} 9. b3 {[%clk 0:02:29]}  a5 {[%clk 0:02:50]} 10. Nbd2 {[%clk 0:02:12]}  a4 {[%clk 0:02:23]} 11. Bb2 {[%clk 0:02:08]}  a3 {[%clk 0:02:06]} 12. Bc3 {[%clk 0:02:07]}  Bb7 {[%clk 0:01:48]} 13. e4 {[%clk 0:01:42]}  dxe4 {[%clk 0:01:21]} 14. Nxe4 {[%clk 0:01:39]}  Nxe4 {[%clk 0:01:21]} 15. Qxe4 {[%clk 0:01:36]}  Qc7 {[%clk 0:01:21]} 16. Rac1 {[%clk 0:01:34]}  c5 {[%clk 0:01:12]} 17. d5 {[%clk 0:01:31]}  Nf6 {[%clk 0:01:06]} 18. Qe5 {[%clk 0:00:49]}  Qxe5 {[%clk 0:00:32]} 19. Nxe5 {[%clk 0:00:48]}  exd5 {[%clk 0:00:30]} 20. cxd5 {[%clk 0:00:48]}  Rfd8 {[%clk 0:00:24]} 21. Nc6 {[%clk 0:00:44]}  Bxc6 {[%clk 0:00:10]} 22. dxc6 {[%clk 0:00:43]}  Rxd1+ {[%clk 0:00:11]} 23. Rxd1 {[%clk 0:00:43]}  Rc8 {[%clk 0:00:12]} 24. Be5 {[%clk 0:00:27]}  Kf8 {[%clk 0:00:10]} 25. c7 {[%clk 0:00:19]}  Ne8 {[%clk 0:00:11]} 26. Bh3 {[%clk 0:00:19]}  Rxc7 {[%clk 0:00:11]} 27. Bxc7 {[%clk 0:00:19]}  Nxc7 {[%clk 0:00:12]} 28. Rd7 {[%clk 0:00:18]}  Nb5 {[%clk 0:00:12]} 29. Bf1 {[%clk 0:00:12]}  Nc3 {[%clk 0:00:11]} 30. Ra7 {[%clk 0:00:12]}  c4 {[%clk 0:00:09]} 31. Ra8+ {[%clk 0:00:11]}  Bd8 {[%clk 0:00:09]} 32. Rxd8+ {[%clk 0:00:11]}  Ke7 {[%clk 0:00:10]} 33. Rd2 {[%clk 0:00:11]}  cxb3 {[%clk 0:00:07]} 34. axb3 {[%clk 0:00:04]}  a2 {[%clk 0:00:08]} 35. Rxa2 {[%clk 0:00:02]}  Nxa2 {[%clk 0:00:09]} 36. f4 {[%clk 0:00:01]}  Kd6 {[%clk 0:00:08]} 37. Bc4 {[%clk 0:00:02]}  f6 {[%clk 0:00:07]} 38. Kf2 {[%clk 0:00:02]}  Kc5 {[%clk 0:00:08]} 39. Bg8 {[%clk 0:00:03]}  h6 {[%clk 0:00:08]} 40. Ke3 {[%clk 0:00:03]}  Nc3 {[%clk 0:00:08]} 41. Kd3 {[%clk 0:00:03]}  Nd5 {[%clk 0:00:08]} 42. Ke4 {[%clk 0:00:02]}  Ne7 {[%clk 0:00:08]} 43. Bf7 {[%clk 0:00:02]}  Kd6 {[%clk 0:00:08]} 44. g4 {[%clk 0:00:01]}  Nc6 {[%clk 0:00:06]} 45. h4 {[%clk 0:00:01]}  Nd8 {[%clk 0:00:06]} 46. Bc4 {[%clk 0:00:01]}  Nb7 {[%clk 0:00:06]} 47. Kf5 {[%clk 0:00:01]}  Ke7 {[%clk 0:00:06]} 48. Kg6 {[%clk 0:00:02]}  Kf8 {[%clk 0:00:06]} 49. b4 {[%clk 0:00:02]}  Nd6 {[%clk 0:00:06]} 50. Bd3 {[%clk 0:00:02]}  Nc8 {[%clk 0:00:06]} 51. g5 {[%clk 0:00:02]}  Ne7+ {[%clk 0:00:06]} 52. Kh7 {[%clk 0:00:03]}  hxg5 {[%clk 0:00:06]} 53. fxg5 {[%clk 0:00:03]}  fxg5 {[%clk 0:00:07]} 54. hxg5 {[%clk 0:00:04]}  Nd5 {[%clk 0:00:07]} 55. b5 {[%clk 0:00:02]}  Nf4 {[%clk 0:00:07]} 56. Bf1 {[%clk 0:00:02]}  Ne6 {[%clk 0:00:08]} 57. Kg6 {[%clk 0:00:02]}  Nf4+ {[%clk 0:00:08]} 58. Kf5 {[%clk 0:00:02]}  Nd5 {[%clk 0:00:08]} 59. Ke6 {[%clk 0:00:03]}  Ne3 {[%clk 0:00:08]} 60. Be2 {[%clk 0:00:03]}  Ke8 {[%clk 0:00:07]} 61. Kd6 {[%clk 0:00:03]}  Nf5+ {[%clk 0:00:07]} 62. Kc6 {[%clk 0:00:04]}  Nd4+ {[%clk 0:00:07]} 63. Kxb6 {[%clk 0:00:05]}  Nxe2 {[%clk 0:00:07]} 64. Kc7 {[%clk 0:00:05]}  Nc3 {[%clk 0:00:06]} 65. b6 {[%clk 0:00:06]}  Nd5+ {[%clk 0:00:07]} 66. Kc6 {[%clk 0:00:07]}  Nxb6 {[%clk 0:00:07]} 67. Kxb6 {[%clk 0:00:08]}  Ke7 {[%clk 0:00:08]} 68. Kc5 {[%clk 0:00:09]}  Ke6 {[%clk 0:00:09]} 69. Kd4 {[%clk 0:00:10]}  Kf5 {[%clk 0:00:09]} 70. Ke3 {[%clk 0:00:10]}  Kxg5 {[%clk 0:00:10]} 71. Kf3 {[%clk 0:00:11]}  Kf5 {[%clk 0:00:10]} 72. Kg3 {[%clk 0:00:12]}  Kg5 {[%clk 0:00:10]} 73. Kf3 {[%clk 0:00:13]}  Kh4 {[%clk 0:00:11]} 74. Kg2 {[%clk 0:00:13]}  Kg4 {[%clk 0:00:11]} 75. Kh2 {[%clk 0:00:13]}  g6 {[%clk 0:00:10]} 76. Kg2 {[%clk 0:00:14]}  g5 {[%clk 0:00:11]} 77. Kh2 {[%clk 0:00:14]}  Kf3 {[%clk 0:00:11]} 78. Kg1 {[%clk 0:00:14]}  Kg3 {[%clk 0:00:11]} 79. Kh1 {[%clk 0:00:15]}  Kf2 {[%clk 0:00:10]} 80. Kh2 {[%clk 0:00:15]}  g4 {[%clk 0:00:11]} 81. Kh1 {[%clk 0:00:15]}  Kf3 {[%clk 0:00:07]} 82. Kg1 {[%clk 0:00:15]}  Kg3 {[%clk 0:00:07]} 83. Kh1 {[%clk 0:00:15]}  Kf2 {[%clk 0:00:06]} 84. Kh2 {[%clk 0:00:15]}  g3+ {[%clk 0:00:06]} 85. Kh3 {[%clk 0:00:14]}  g2 {[%clk 0:00:07]} 0-1


[Site "https://www.chess.com"]

[Event "Titled Tuesday Blitz March 28 Late 2023"]
[White "Mhango, Banele"]
[Black "Kohler, Aran"]
[WhiteFideId "14327040"]
[BlackFideId "1002856"]
[WhiteElo "2204"]
[BlackElo "2293"]
[Result "1-0"]
[Round "01"]
[TimeControl "180+2"]
[Date "2023.03.28"]
[WhiteClock "0:00:11"]
[BlackClock "0:00:03"]

1. d4 {[%clk 0:02:57]}  d5 {[%clk 0:02:59]} 2. c4 {[%clk 0:02:55]}  c6 {[%clk 0:02:59]} 3. Nf3 {[%clk 0:02:51]}  Nf6 {[%clk 0:02:59]} 4. Qc2 {[%clk 0:02:48]}  e6 {[%clk 0:02:58]} 5. Nbd2 {[%clk 0:02:47]}  Nbd7 {[%clk 0:02:58]} 6. g3 {[%clk 0:02:44]}  Bd6 {[%clk 0:02:52]} 7. Bg2 {[%clk 0:02:40]}  O-O {[%clk 0:02:52]} 8. O-O {[%clk 0:02:41]}  Re8 {[%clk 0:02:51]} 9. e4 {[%clk 0:02:41]}  dxe4 {[%clk 0:02:49]} 10. Nxe4 {[%clk 0:02:39]}  Nxe4 {[%clk 0:02:37]} 11. Qxe4 {[%clk 0:02:34]}  Nf6 {[%clk 0:02:27]} 12. Qc2 {[%clk 0:02:26]}  c5 {[%clk 0:02:12]} 13. Rd1 {[%clk 0:02:24]}  Qc7 {[%clk 0:01:58]} 14. b3 {[%clk 0:02:15]}  Rb8 {[%clk 0:01:26]} 15. Bb2 {[%clk 0:02:10]}  b6 {[%clk 0:01:22]} 16. dxc5 {[%clk 0:01:50]}  bxc5 {[%clk 0:01:09]} 17. Rxd6 {[%clk 0:01:35]}  Qxd6 {[%clk 0:01:08]} 18. Be5 {[%clk 0:01:31]}  Qb6 {[%clk 0:01:08]} 19. Ng5 {[%clk 0:01:23]}  Rb7 {[%clk 0:00:43]} 20. Bxf6 {[%clk 0:01:17]}  gxf6 {[%clk 0:00:42]} 21. Qxh7+ {[%clk 0:01:08]}  Kf8 {[%clk 0:00:42]} 22. Ne4 {[%clk 0:00:56]}  Ke7 {[%clk 0:00:23]} 23. Qh6 {[%clk 0:00:53]}  e5 {[%clk 0:00:21]} 24. Nc3 {[%clk 0:00:53]}  Be6 {[%clk 0:00:19]} 25. Bxb7 {[%clk 0:00:50]}  Qxb7 {[%clk 0:00:19]} 26. Rd1 {[%clk 0:00:49]}  Qf3 {[%clk 0:00:17]} 27. Qe3 {[%clk 0:00:47]}  Qxe3 {[%clk 0:00:15]} 28. fxe3 {[%clk 0:00:41]}  Bh3 {[%clk 0:00:15]} 29. Nd5+ {[%clk 0:00:37]}  Kf8 {[%clk 0:00:15]} 30. Nxf6 {[%clk 0:00:30]}  Re6 {[%clk 0:00:15]} 31. Ne4 {[%clk 0:00:23]}  Rc6 {[%clk 0:00:13]} 32. Rd5 {[%clk 0:00:19]}  Ra6 {[%clk 0:00:10]} 33. Rd2 {[%clk 0:00:16]}  Ra5 {[%clk 0:00:07]} 34. Ng5 {[%clk 0:00:13]}  Bf5 {[%clk 0:00:05]} 35. Kf2 {[%clk 0:00:10]}  Kg7 {[%clk 0:00:03]} 36. Nf3 {[%clk 0:00:11]} 1-0


[Site "https://www.chess.com"]